fUSD/lending_fUSD_20241128
["ID","MTS","AMOUNT","RATE_DAILY","PERIOD"]
[343657207,1732800633926,-500.0,9.999e-05,2]
[343657208,1732800633937,-511.22,9.999e-05,2]
[343657209,1732800633948,-500.0,9.999e-05,2]
[343657210,1732800633960,-500.0,9.999e-05,2]
[343657211,1732800633972,-500.0,9.999e-05,2]
[343657212,1732800633983,-500.0,9.999e-05,2]
[343657213,1732800633995,-500.0,9.999e-05,2]
[343657214,1732800634007,-500.0,9.999e-05,2]
[343657215,1732800634024,-500.0,9.999e-05,2]
[343657216,1732800634035,-505.19164041,9.999e-05,2]
[343657217,1732800634046,-504.63927064,9.999e-05,2]
[343657218,1732800634058,-500.0,9.999e-05,2]
[343657219,1732800634069,-500.0,9.999e-05,2]
[343657220,1732800634080,-500.0,9.999e-05,2]
[343657221,1732800634092,-500.0,9.999e-05,2]
[343657222,1732800634102,-500.0,9.999e-05,2]
[343657223,1732800634113,-500.0,9.999e-05,2]
[343657224,1732800634124,-500.0,9.999e-05,2]
[343657225,1732800634135,-500.0,9.999e-05,2]
[343657226,1732800634146,-510.14711754,9.999e-05,2]
[343657227,1732800634156,-500.0,9.999e-05,2]
[343657228,1732800634167,-500.0,9.999e-05,2]
[343657229,1732800634179,-500.0,9.999e-05,2]
[343657230,1732800634189,-500.0,9.999e-05,2]
[343657231,1732800634201,-504.59691117,9.999e-05,2]
[343657232,1732800634212,-503.0941263,9.999e-05,2]
[343657233,1732800634222,-500.0,9.999e-05,2]
[343657234,1732800634233,-500.0,9.999e-05,2]
[343657235,1732800634244,-500.0,9.999e-05,2]
[343657236,1732800634255,-500.0,9.999e-05,2]
[343657237,1732800634269,-500.0,9.999e-05,2]
[343657238,1732800634281,-617.21529406,9.999e-05,2]
[343657239,1732800634291,-500.0,9.999e-05,2]
[343657240,1732800634303,-500.0,9.999e-05,2]
[343657241,1732800634313,-500.0,9.999e-05,2]
[343657242,1732800634325,-500.0,9.999e-05,2]
[343657243,1732800634336,-500.0,9.999e-05,2]
[343657244,1732800634347,-500.0,9.999e-05,2]
[343657245,1732800634358,-500.0,9.999e-05,2]
[343657246,1732800634369,-500.0,9.999e-05,2]
[343657247,1732800634380,-500.0,9.999e-05,2]
[343657248,1732800634391,-500.0,9.999e-05,2]
[343657249,1732800634402,-500.0,9.999e-05,2]
[343657250,1732800634413,-500.0,9.999e-05,2]
[343657251,1732800634424,-500.0,9.999e-05,2]
[343657252,1732800634434,-500.0,9.999e-05,2]
[343657253,1732800634445,-500.0,9.999e-05,2]
[343657254,1732800634456,-385.7064151,9.999e-05,2]
[343657255,1732800634468,-500.0,9.999e-05,2]
[343657256,1732800634479,-419.13062669,9.999e-05,2]
[343657257,1732800634491,-484.44701104,9.999e-05,2]
[343657258,1732800634501,-500.0,9.999e-05,2]
[343657259,1732800634512,-500.0,9.999e-05,2]
[343657260,1732800634522,-446.56199317,9.999e-05,2]
[343657261,1732800634533,-500.0,9.999e-05,2]
[343657262,1732800634547,-500.0,9.999e-05,2]
[343657263,1732800634562,-500.0,9.999e-05,2]
[343657264,1732800634572,-500.0,9.999e-05,2]
[343657265,1732800634583,-500.0,9.999e-05,2]
[343657266,1732800634594,-500.0,9.999e-05,2]
[343657267,1732800634604,-500.0,9.999e-05,2]
[343657268,1732800634615,-500.0,9.999e-05,2]
[343657269,1732800634626,-500.0,9.999e-05,2]
[343657270,1732800634637,-500.0,9.999e-05,2]
[343657271,1732800634647,-500.0,9.999e-05,2]
[343657272,1732800634658,-500.0,9.999e-05,2]
[343657273,1732800634669,-500.0,9.999e-05,2]
[343657274,1732800634679,-500.0,9.999e-05,2]
[343657275,1732800634690,-500.0,9.999e-05,2]
[343657276,1732800634699,-500.0,9.999e-05,2]
[343657277,1732800634710,-500.0,9.999e-05,2]
[343657278,1732800634719,-500.0,9.999e-05,2]
[343657279,1732800634730,-500.0,9.999e-05,2]
[343657280,1732800634740,-500.0,9.999e-05,2]
[343657281,1732800634750,-517.75,9.999e-05,2]
[343657282,1732800634762,-4697.09374284,9.999e-05,2]
[343657283,1732800634772,-500.0,9.999e-05,2]
[343657284,1732800634782,-500.0,9.999e-05,2]
[343657285,1732800634792,-500.0,9.999e-05,2]
[343657286,1732800634802,-500.0,9.999e-05,2]
[343657287,1732800634812,-500.0,9.999e-05,2]
[343657288,1732800634822,-500.0,9.999e-05,2]
[343657289,1732800634832,-500.0,9.999e-05,2]
[343657290,1732800634842,-151.0,9.999e-05,2]
[343657291,1732800634852,-500.0,9.999e-05,2]
[343657292,1732800634863,-500.0,9.999e-05,2]
[343657293,1732800634873,-500.0,9.999e-05,2]
[343657294,1732800634883,-500.0,9.999e-05,2]
[343657295,1732800634893,-615.31285817,9.999e-05,2]
[343657296,1732800634904,-500.0,9.999e-05,2]
[343657297,1732800634915,-500.0,9.999e-05,2]
[343657298,1732800634925,-500.0,9.999e-05,2]
[343657299,1732800634936,-500.0,9.999e-05,2]
[343657300,1732800634947,-500.0,9.999e-05,2]
[343657301,1732800634957,-500.0,9.999e-05,2]
[343657302,1732800634968,-500.0,9.999e-05,2]
[343657303,1732800634979,-500.0,9.999e-05,2]
[343657304,1732800634989,-500.0,9.999e-05,2]
[343657305,1732800634999,-500.0,9.999e-05,2]
[343657306,1732800635011,-500.0,9.999e-05,2]
[343657307,1732800635022,-500.0,9.999e-05,2]
[343657308,1732800635032,-500.0,9.999e-05,2]
[343657309,1732800635043,-500.0,9.999e-05,2]
[343657310,1732800635053,-500.0,9.999e-05,2]
[343657311,1732800635064,-500.0,9.999e-05,2]
[343657312,1732800635075,-500.0,9.999e-05,2]
[343657313,1732800635086,-500.0,9.999e-05,2]
[343657314,1732800635404,-500.0,9.999e-05,2]
[343657315,1732800635414,-500.0,9.999e-05,2]
[343657316,1732800635423,-500.0,9.999e-05,2]
[343657317,1732800635434,-500.0,9.999e-05,2]
[343657318,1732800635443,-500.0,9.999e-05,2]
[343657319,1732800635454,-196.32,9.999e-05,2]
[343657320,1732800635463,-500.0,9.999e-05,2]
[343657321,1732800635473,-500.0,9.999e-05,2]
[343657322,1732800635482,-500.0,9.999e-05,2]
[343657323,1732800635492,-500.0,9.999e-05,2]
[343657324,1732800635501,-500.0,9.999e-05,2]
[343657325,1732800635510,-500.0,9.999e-05,2]
[343657326,1732800635522,-500.0,9.999e-05,2]
[343657327,1732800635531,-500.0,9.999e-05,2]
[343657328,1732800635545,-500.0,9.999e-05,2]
[343657329,1732800635555,-500.0,9.999e-05,2]
[343657330,1732800635564,-500.0,9.999e-05,2]
[343657331,1732800635573,-500.0,9.999e-05,2]
[343657332,1732800635583,-500.0,9.999e-05,2]
[343657333,1732800635592,-500.0,9.999e-05,2]
[343657334,1732800635601,-500.0,9.999e-05,2]
[343657335,1732800635610,-500.0,9.999e-05,2]
[343657336,1732800635623,-603.48107746,9.999e-05,2]
[343657337,1732800635634,-500.0,9.999e-05,2]
[343657338,1732800635644,-500.0,9.999e-05,2]
[343657339,1732800635654,-500.0,9.999e-05,2]
[343657340,1732800635663,-500.0,9.999e-05,2]
[343657341,1732800635673,-500.0,9.999e-05,2]
[343657342,1732800635682,-500.0,9.999e-05,2]
[343657343,1732800635691,-500.0,9.999e-05,2]
[343657344,1732800635701,-496.84,9.999e-05,2]
[343657345,1732800635710,-500.0,9.999e-05,2]
[343657346,1732800635720,-500.0,9.999e-05,2]
[343657347,1732800635730,-388.26,9.999e-05,2]
[343657348,1732800635739,-500.0,9.999e-05,2]
[343657349,1732800635749,-500.0,9.999e-05,2]
[343657350,1732800635758,-500.0,9.999e-05,2]
[343657351,1732800635769,-500.0,9.999e-05,2]
[343657352,1732800635778,-500.0,9.999e-05,2]
[343657353,1732800635788,-500.0,9.999e-05,2]
[343657354,1732800635797,-500.0,9.999e-05,2]
[343657355,1732800635806,-500.0,9.999e-05,2]
[343657356,1732800635815,-500.0,9.999e-05,2]
[343657357,1732800635825,-500.0,9.999e-05,2]
[343657358,1732800635834,-289.61,9.999e-05,2]
[343657359,1732800635844,-500.0,9.999e-05,2]
[343657360,1732800635853,-500.0,9.999e-05,2]
[343657361,1732800635863,-500.0,9.999e-05,2]
[343657362,1732800635872,-500.0,9.999e-05,2]
[343657363,1732800635881,-500.0,9.999e-05,2]
[343657364,1732800635892,-500.0,9.999e-05,2]
[343657365,1732800635903,-500.0,9.999e-05,2]
[343657366,1732800635912,-500.0,9.999e-05,2]
[343657367,1732800635922,-592.53,9.999e-05,2]
[343657368,1732800635931,-500.0,9.999e-05,2]
[343657369,1732800635941,-500.0,9.999e-05,2]
[343657370,1732800635950,-500.0,9.999e-05,2]
[343657371,1732800635959,-500.0,9.999e-05,2]
[343657372,1732800635969,-500.0,9.999e-05,2]
[343657373,1732800635978,-500.0,9.999e-05,2]
[343657374,1732800635988,-500.0,9.999e-05,2]
[343657375,1732800635997,-500.0,9.999e-05,2]
[343657376,1732800636007,-500.0,9.999e-05,2]
[343657377,1732800636018,-500.0,9.999e-05,2]
[343657378,1732800636027,-500.0,9.999e-05,2]
[343657379,1732800636037,-500.0,9.999e-05,2]
[343657380,1732800636046,-500.0,9.999e-05,2]
[343657381,1732800636056,-342.51,9.999e-05,2]
[343657382,1732800636065,-500.0,9.999e-05,2]
[343657383,1732800636074,-500.0,9.999e-05,2]
[343657384,1732800636083,-500.0,9.999e-05,2]
[343657385,1732800636093,-500.0,9.999e-05,2]
[343657386,1732800636102,-500.0,9.999e-05,2]
[343657387,1732800636112,-500.0,9.999e-05,2]
[343657388,1732800636121,-500.0,9.999e-05,2]
[343657389,1732800636131,-500.0,9.999e-05,2]
[343657390,1732800636141,-500.0,9.999e-05,2]
[343657391,1732800636150,-500.0,9.999e-05,2]
[343657392,1732800636160,-500.0,9.999e-05,2]
[343657393,1732800636170,-500.0,9.999e-05,2]
[343657394,1732800636178,-500.0,9.999e-05,2]
[343657395,1732800636188,-373.08,9.999e-05,2]
[343657396,1732800636197,-500.0,9.999e-05,2]
[343657397,1732800636207,-500.0,9.999e-05,2]
[343657398,1732800636216,-500.0,9.999e-05,2]
[343657399,1732800636226,-500.0,9.999e-05,2]
[343657400,1732800636236,-500.0,9.999e-05,2]
[343657401,1732800636246,-500.0,9.999e-05,2]
[343657402,1732800636255,-500.0,9.999e-05,2]
[343657403,1732800636265,-500.0,9.999e-05,2]
[343657404,1732800636274,-500.0,9.999e-05,2]
[343657405,1732800636284,-500.0,9.999e-05,2]
[343657406,1732800636293,-317.66,9.999e-05,2]
[343657407,1732800636302,-500.0,9.999e-05,2]
[343657408,1732800636311,-500.0,9.999e-05,2]
[343657409,1732800636320,-500.0,9.999e-05,2]
[343657410,1732800636329,-500.0,9.999e-05,2]
[343657411,1732800636338,-500.0,9.999e-05,2]
[343657412,1732800636347,-500.0,9.999e-05,2]
[343657413,1732800636357,-500.0,9.999e-05,2]
[343657414,1732800636367,-500.0,9.999e-05,2]
[343657415,1732800636375,-500.0,9.999e-05,2]
[343657416,1732800636384,-500.0,9.999e-05,2]
[343657417,1732800636393,-500.0,9.999e-05,2]
[343657418,1732800636402,-500.0,9.999e-05,2]
[343657419,1732800636411,-260.58667236,9.999e-05,2]
[343657420,1732800636420,-500.0,9.999e-05,2]
[343657421,1732800636429,-522.86,9.999e-05,2]
[343657422,1732800636438,-636.34,9.999e-05,2]
[343657423,1732800636447,-636.34,9.999e-05,2]
[343657424,1732800636456,-636.34,9.999e-05,2]
[343657425,1732800636465,-636.34,9.999e-05,2]
[343657426,1732800636474,-636.34,9.999e-05,2]
[343657427,1732800636483,-636.34,9.999e-05,2]
[343657428,1732800636491,-636.34,9.999e-05,2]
[343657429,1732800636500,-636.34,9.999e-05,2]
[343657430,1732800636510,-636.34,9.999e-05,2]
[343657431,1732800636521,-636.34,9.999e-05,2]
[343657432,1732800636530,-636.34,9.999e-05,2]
[343657433,1732800636539,-636.34,9.999e-05,2]
[343657434,1732800636554,-636.34,9.999e-05,2]
[343657435,1732800636563,-636.34,9.999e-05,2]
[343657436,1732800636573,-636.34,9.999e-05,2]
[343657437,1732800636582,-636.34,9.999e-05,2]
[343657438,1732800636591,-636.34,9.999e-05,2]
[343657439,1732800636601,-636.34,9.999e-05,2]
[343657440,1732800636612,-500.0,9.999e-05,2]
[343657441,1732800636623,-636.34,9.999e-05,2]
[343657442,1732800636633,-500.0,9.999e-05,2]
[343657443,1732800636643,-636.34,9.999e-05,2]
[343657444,1732800636653,-500.0,9.999e-05,2]
[343657445,1732800636662,-636.34,9.999e-05,2]
[343657446,1732800636671,-500.0,9.999e-05,2]
[343657447,1732800636680,-636.34,9.999e-05,2]
[343657448,1732800636689,-500.0,9.999e-05,2]
[343657449,1732800636698,-636.47918275,9.999e-05,2]
[343657450,1732800636708,-500.0,9.999e-05,2]
[343657451,1732800636717,-500.0,9.999e-05,2]
[343657452,1732800636726,-274.74,9.999e-05,2]
[343657453,1732800636735,-500.0,9.999e-05,2]
[343657454,1732800636743,-500.0,9.999e-05,2]
[343657455,1732800636752,-500.0,9.999e-05,2]
[343657456,1732800636761,-500.0,9.999e-05,2]
[343657457,1732800636774,-500.0,9.999e-05,2]
[343657458,1732800636783,-500.0,9.999e-05,2]
[343657459,1732800636792,-241.87,9.999e-05,2]
[343657460,1732800636801,-500.0,9.999e-05,2]
[343657461,1732800636811,-500.0,9.999e-05,2]
[343657462,1732800636820,-177.2,9.999e-05,2]
[343657463,1732800636829,-500.0,9.999e-05,2]
[343657464,1732800636838,-500.0,9.999e-05,2]
[343657465,1732800636847,-500.0,9.999e-05,2]
[343657466,1732800636856,-500.0,9.999e-05,2]
[343657467,1732800636866,-500.0,9.999e-05,2]
[343657468,1732800636875,-500.0,9.999e-05,2]
[343657469,1732800636884,-500.0,9.999e-05,2]
[343657470,1732800636894,-500.0,9.999e-05,2]
[343657471,1732800636903,-500.0,9.999e-05,2]
[343657472,1732800636912,-500.0,9.999e-05,2]
[343657473,1732800636922,-500.0,9.999e-05,2]
[343657474,1732800636931,-500.0,9.999e-05,2]
[343657475,1732800636940,-500.0,9.999e-05,2]
[343657476,1732800636950,-500.0,9.999e-05,2]
[343657477,1732800636959,-641.67,9.999e-05,2]
[343657478,1732800636968,-500.0,9.999e-05,2]
[343657479,1732800636978,-500.0,9.999e-05,2]
[343657480,1732800636987,-285.7,9.999e-05,2]
[343657481,1732800636996,-500.0,9.999e-05,2]
[343657482,1732800637006,-500.0,9.999e-05,2]
[343657483,1732800637018,-500.0,9.999e-05,2]
[343657484,1732800637027,-500.0,9.999e-05,2]
[343657485,1732800637036,-500.0,9.999e-05,2]
[343657486,1732800637046,-302.06,9.999e-05,2]
[343657487,1732800637055,-1319.1,9.999e-05,2]
[343657488,1732800637064,-1319.1,9.999e-05,2]
[343657489,1732800637073,-1319.1,9.999e-05,2]
[343657490,1732800637083,-1319.1,9.999e-05,2]
[343657491,1732800637093,-1319.1,9.999e-05,2]
[343657492,1732800637102,-1319.1,9.999e-05,2]
[343657493,1732800637112,-1319.1,9.999e-05,2]
[343657494,1732800637120,-1319.1,9.999e-05,2]
[343657495,1732800637130,-1319.1,9.999e-05,2]
[343657496,1732800637139,-1319.1,9.999e-05,2]
[343657497,1732800637148,-1319.1,9.999e-05,2]
[343657498,1732800637158,-1319.1,9.999e-05,2]
[343657499,1732800637167,-1319.1,9.999e-05,2]
[343657500,1732800637176,-1319.1,9.999e-05,2]
[343657501,1732800637185,-1319.1,9.999e-05,2]
[343657502,1732800637195,-1319.1,9.999e-05,2]
[343657503,1732800637204,-1319.1,9.999e-05,2]
[343657504,1732800637214,-1319.1,9.999e-05,2]
[343657505,1732800637223,-1319.1,9.999e-05,2]
[343657506,1732800637232,-1319.1,9.999e-05,2]
[343657507,1732800637241,-1319.1,9.999e-05,2]
[343657508,1732800637250,-1319.1,9.999e-05,2]
[343657509,1732800637259,-1319.2493,9.999e-05,2]
[343657510,1732800637271,-500.0,9.999e-05,2]
[343657511,1732800637280,-500.0,9.999e-05,2]
[343657512,1732800637290,-612.81,9.999e-05,2]
[343657513,1732800637299,-500.0,9.999e-05,2]
[343657514,1732800637308,-500.0,9.999e-05,2]
[343657515,1732800637317,-598.24,9.999e-05,2]
[343657516,1732800637327,-500.0,9.999e-05,2]
[343657517,1732800637336,-689.0,9.999e-05,2]
[343657518,1732800637345,-281219.11518438,9.999e-05,2]
[343657519,1732800637354,-2895.50298298,9.999e-05,2]
[343657520,1732800637363,-872809.24981753,0.0001,2]
[343657521,1732800638472,-500.0,9.973e-05,2]
[343657522,1732800638481,-11123.167174,0.0001,2]
[343657523,1732800638512,-2545.71507334,0.0001,2]
[343657524,1732800638528,-469.27960785,0.0001,2]
[343657525,1732800639586,-4763.25,0.0001,2]
[343657526,1732800639651,-349.91085503,0.0001,2]
[343657527,1732800639855,-1842.93129399,0.0001,2]
[343657528,1732800639897,-320.5318825,0.0001,2]
[343657531,1732800642596,-5646.27688144,0.0001,2]
[343657532,1732800642654,-167.09,9.967e-05,2]
[343657533,1732800642663,-1703.40375,0.0001,2]
[343657534,1732800642774,-1138.08,9.888e-05,2]
[343657535,1732800642785,-1361.92,9.888e-05,2]
[343657536,1732800642797,-1185.02517766,0.0001,2]
[343657537,1732800642828,-3735.85295994,0.0001,2]
[343657538,1732800642840,-6526.61821718,0.0001,2]
[343657540,1732800645534,-500.0,9.973e-05,2]
[343657541,1732800645544,-403.767175,9.999e-05,2]
[343657542,1732800645842,-108.1831,9.999e-05,2]
[343657543,1732800645894,-51.049725,9.999e-05,2]
[343657544,1732800645904,-52921.29069121,0.0001,2]
[343657558,1732801083368,1204.64868285,0.0002201,120]
[343657560,1732801363593,150.0,7.05e-05,2]
[343657561,1732801363615,56.29,7.05e-05,2]
[343657569,1732801832038,-1040.1,8.219e-05,2]
[343657570,1732801832047,-9014.6325868,8.81e-05,2]
[343657571,1732801832056,-300.0,8.811e-05,2]
[343657572,1732801832066,-23900.0,8.812e-05,2]
[343657573,1732801832075,-1000.0,8.829e-05,2]
[343657574,1732801832085,-271.44,8.871e-05,2]
[343657575,1732801832095,-192.49,8.875e-05,2]
[343657576,1732801832106,-250.0,8.934e-05,2]
[343657577,1732801832116,-250.0,8.934e-05,2]
[343657578,1732801832127,-200.0,8.974e-05,2]
[343657579,1732801832137,-164.16,8.991e-05,2]
[343657580,1732801832146,-250.0,9.003e-05,2]
[343657581,1732801832155,-303.11,9.035e-05,2]
[343657582,1732801832165,-400.0,9.589e-05,2]
[343657583,1732801832175,-158.64,9.589e-05,2]
[343657584,1732801832184,-497.45,9.666e-05,2]
[343657585,1732801832194,-420.0,9.693e-05,2]
[343657586,1732801832204,-13486.3133,9.698e-05,2]
[343657587,1732801832213,-1000.0,9.89e-05,2]
[343657588,1732801832223,-150.0,9.909e-05,2]
[343657589,1732801832232,-1000.0,9.909e-05,2]
[343657590,1732801832241,-57900.34606859,9.91e-05,2]
[343657591,1732801832251,-1000.0,9.933e-05,2]
[343657592,1732801832260,-872.9922702,9.978e-05,2]
[343657593,1732801832270,-240.71520457,9.98e-05,2]
[343657594,1732801832281,-872.9922702,9.984e-05,2]
[343657595,1732801832290,-150.0,9.989e-05,2]
[343657596,1732801832299,-1848.301,9.99e-05,2]
[343657597,1732801832309,-184.029,9.99e-05,2]
[343657598,1732801832318,-872.9922702,9.992e-05,2]
[343657599,1732801832328,-872.9922702,9.994e-05,2]
[343657600,1732801832338,-872.9922702,9.997e-05,2]
[343657601,1732801832347,-335.4183401,9.997e-05,2]
[343657602,1732801832357,-500.0,9.997e-05,2]
[343657603,1732801832367,-500.0,9.997e-05,2]
[343657604,1732801832376,-500.0,9.997e-05,2]
[343657606,1732801832386,-495.17,9.998e-05,2]
[343657608,1732801832396,-150.01,9.999e-05,2]
[343657609,1732801832406,-872.9922702,9.999e-05,2]
[343657611,1732801832415,-500.0,9.999e-05,2]
[343657612,1732801832424,-500.0,9.999e-05,2]
[343657613,1732801832433,-500.0,9.999e-05,2]
[343657614,1732801832442,-500.0,9.999e-05,2]
[343657615,1732801832452,-500.0,9.999e-05,2]
[343657616,1732801832462,-500.0,9.999e-05,2]
[343657617,1732801832470,-500.0,9.999e-05,2]
[343657618,1732801832479,-500.0,9.999e-05,2]
[343657619,1732801832488,-500.0,9.999e-05,2]
[343657620,1732801832498,-511.87894546,9.999e-05,2]
[343657621,1732801832508,-500.0,9.999e-05,2]
[343657622,1732801832518,-500.0,9.999e-05,2]
[343657623,1732801832528,-500.0,9.999e-05,2]
[343657624,1732801832538,-500.0,9.999e-05,2]
[343657625,1732801832547,-500.0,9.999e-05,2]
[343657626,1732801832556,-500.0,9.999e-05,2]
[343657627,1732801832564,-500.0,9.999e-05,2]
[343657628,1732801832573,-500.0,9.999e-05,2]
[343657629,1732801832582,-500.0,9.999e-05,2]
[343657630,1732801832591,-500.0,9.999e-05,2]
[343657631,1732801832600,-500.0,9.999e-05,2]
[343657632,1732801832611,-500.0,9.999e-05,2]
[343657633,1732801832622,-386.13,9.999e-05,2]
[343657634,1732801832632,-500.0,9.999e-05,2]
[343657635,1732801832641,-500.0,9.999e-05,2]
[343657636,1732801832650,-505.44116128,9.999e-05,2]
[343657637,1732801832660,-500.0,9.999e-05,2]
[343657638,1732801832669,-500.0,9.999e-05,2]
[343657639,1732801832679,-500.0,9.999e-05,2]
[343657640,1732801832688,-346.34284193,9.999e-05,2]
[343657641,1732801832697,-500.0,9.999e-05,2]
[343657642,1732801832706,-500.0,9.999e-05,2]
[343657643,1732801832715,-500.0,9.999e-05,2]
[343657644,1732801832724,-500.0,9.999e-05,2]
[343657645,1732801832734,-500.0,9.999e-05,2]
[343657646,1732801832743,-500.0,9.999e-05,2]
[343657647,1732801832751,-500.0,9.999e-05,2]
[343657648,1732801832760,-643.07299376,9.999e-05,2]
[343657649,1732801832770,-161.96574678,9.999e-05,2]
[343657650,1732801832780,-500.0,9.999e-05,2]
[343657651,1732801832789,-415.3813,9.999e-05,2]
[343657652,1732801832799,-670.0,9.999e-05,2]
[343657653,1732801832808,-190942.50788952,9.999e-05,2]
[343657654,1732801832828,-42955.5471178,9.999e-05,2]
[343657655,1732801832839,-104560.35210604,9.999e-05,2]
[343657656,1732801832848,-3459.75457349,9.999e-05,2]
[343657657,1732801832857,-494227.0391324,0.0001,2]
[343657658,1732801832890,-264.82796935,0.0001,2]
[343657737,1732801840103,-500.0,9.973e-05,2]
[343657738,1732801840115,-9123.3789064,0.0001,2]
[343657739,1732801840148,-133839.63383761,0.0001,2]
[343657740,1732801840163,-2755.96911363,0.0001,2]
[343657741,1732801840175,-983.92151556,0.0001,2]
[343657742,1732801840187,-252.55344993,0.0001,2]
[343657743,1732801840200,-3818.03566678,0.0001,2]
[343657748,1732801842750,-456.94999998,9.999e-05,2]
[343657749,1732801842763,-49.05000002,9.999e-05,2]
[343657750,1732801842773,-702.45433132,0.0001,2]
[343657751,1732801842982,-722.20215873,0.0001,2]
[343657752,1732801842995,-948.18799716,0.0001,2]
[343657753,1732801843072,-286.8492,0.0001,2]
[343657754,1732801843091,-4609.66329927,0.0001,2]
[343657756,1732801843183,-1142.6499999,0.0001,2]
[343657758,1732801843196,-2313.9666447,0.0001,2]
[343657774,1732801845779,-250.0,9.647e-05,2]
[343657776,1732801845790,-163.8,9.647e-05,2]
[343657778,1732801845801,-593.002,9.989e-05,2]
[343657779,1732801845815,-3763.3192,0.0001,2]
[343657786,1732801845883,-35255.5,0.0001,2]
[343657801,1732801846071,-1913.52,0.0001,2]
[343657802,1732801846084,-26892.33092235,0.0001,2]
[343657803,1732801846096,-40890.629262,0.0001,2]
[343657808,1732802656136,-1362.49,8.219e-05,2]
[343657809,1732802656159,-1000.0,8.699e-05,2]
[343657810,1732802656180,-150.0,8.699e-05,2]
[343657811,1732802656208,-300.0,8.699e-05,2]
[343657812,1732802656229,-32487.51,8.7e-05,2]
[343657813,1732802916572,10000.0,0.00011,5]
[343657814,1732802935284,10000.0,0.00011,5]
[343657815,1732802955297,-461.686,0.0002347,120]
[343657816,1732802955509,-265538.314,0.00025,120]
[343657824,1732803011704,30000.0,0.00011,5]
[343657836,1732803032304,-468.442433,8.655e-05,2]
[343657837,1732803032314,-150.0,8.699e-05,2]
[343657838,1732803032325,-300.0,8.699e-05,2]
[343657839,1732803032336,-97887.0642,8.7e-05,2]
[343657840,1732803032346,-200.0,8.72e-05,2]
[343657841,1732803032356,-164.16,8.805e-05,2]
[343657842,1732803032367,-250.0,8.805e-05,2]
[343657843,1732803032380,-250.0,8.82e-05,2]
[343657844,1732803032390,-250.0,8.823e-05,2]
[343657845,1732803032399,-438.32,8.854e-05,2]
[343657846,1732803032410,-23900.0,8.894e-05,2]
[343657847,1732803032420,-1000.0,8.971e-05,2]
[343657848,1732803032430,-1455.02,8.972e-05,2]
[343657849,1732803032439,-4695.549,8.992e-05,2]
[343657850,1732803032450,-157.1,9.008e-05,2]
[343657851,1732803032459,-170.85,9.041e-05,2]
[343657852,1732803032469,-170.85,9.487e-05,2]
[343657853,1732803032478,-255.0,9.569e-05,2]
[343657854,1732803032487,-420.0,9.569e-05,2]
[343657857,1732803032497,-158.64,9.589e-05,2]
[343657858,1732803032507,-198.022075,9.894e-05,2]
[343657860,1732803032516,-3901.0935,9.899e-05,2]
[343657861,1732803032526,-1000.0,9.899e-05,2]
[343657862,1732803032536,-47323.4767,9.9e-05,2]
[343657863,1732803032546,-501.0,9.9e-05,2]
[343657864,1732803032555,-495.39,9.91e-05,2]
[343657865,1732803032564,-170.85,9.933e-05,2]
[343657866,1732803032592,-166.52,9.937e-05,2]
[343657867,1732803032607,-500.0,9.973e-05,2]
[343657868,1732803032616,-504.5,9.986e-05,2]
[343657869,1732803032626,-1910.286,9.99e-05,2]
[343657870,1732803032637,-184.029,9.99e-05,2]
[343657871,1732803032647,-347.46297554,9.99e-05,2]
[343657872,1732803032656,-347.46297545,9.99e-05,2]
[343657873,1732803032666,-347.46297545,9.99e-05,2]
[343657874,1732803032675,-347.46297545,9.99e-05,2]
[343657875,1732803032686,-347.46297545,9.99e-05,2]
[343657876,1732803032695,-347.46297545,9.99e-05,2]
[343657877,1732803032705,-347.46297545,9.99e-05,2]
[343657878,1732803032715,-347.46297545,9.99e-05,2]
[343657879,1732803032725,-347.46297545,9.99e-05,2]